[Event "Azerbaijan Women Championship 2022"]
[Site "Baku"]
[Date "2022.05.19"]
[Round "3.2"]
[White "Balajayeva, Khanim"]
[Black "Abdulla, Khayala"]
[Result "1/2-1/2"]
[ECO "B22"]
[WhiteElo "2376"]
[BlackElo "2219"]
[Annotator "TA"]
[PlyCount "80"]
[EventDate "2022.05.17"]
[EventType "tourn"]
[EventCountry "AZE"]
[SourceTitle "playchess.com"]
[Source "ChessBase"]
[SourceQuality "1"]
[TimeControl "40/5400+30:1800+30"]

{[%evp 14,80,7,4,10,10,8,0,10,-8,0,0,0,0,0,0,8,-14,-20,-18,-23,-20,-23,-20,0,0,0,0,0,0,0,-12,0,0,0,0,0,0,1,0,0,0,0,0,0,0,0,0,0,0,0,0,0,0,0,0,0,0,0,0,0,0,0,0,0,0,0,0,0]} 1. e4 {[%emt 0:01:04]} c5 {[%emt 0:00:10]} 2. c3 {[%emt 0:00:14]} d5 {[%emt 0:00:12]} 3. exd5 {[%emt 0:00:09]} Qxd5 {[%emt 0:00:06]} 4. Nf3 {[%emt 0:00:01]} Nf6 {[%emt 0:00:10]} 5. d4 {[%emt 0:01:14]} e6 {[%emt 0:00:08]} 6. Be2 {[%emt 0:00:12][%cal Bf1e2,Be2d1,Bd1c2][%mdl 32]} Be7 {[%emt 0:00:50]} 7. O-O {[%emt 0:01:01]} O-O {[%emt 0:00:52]} 8. c4 {[%emt 0:03:41]} Qc6 {[%emt 0:04:01] B22: Sicilian: 2 c3.} 9. dxc5 {[%emt 0:02:25]} Rd8 {[%emt 0:02:47]} 10. Qc2 {[%emt 0:00:47]} Qe4 {[%emt 0:02:35] [#]} 11. Bd1 $146 {[%emt 0:13:28]} ({Predecessor:} 11. Ne1 Nc6 12. Nc3 Qxc2 13. Nxc2 Bxc5 14. Rd1 Rxd1+ 15. Bxd1 e5 16. Be3 Bxe3 17. Nxe3 {½-½ (49) Andreikin,D (2727)-Ding,L (2812) Wenzhou 2019}) 11... Qxc2 {[%emt 0:10:18]} 12. Bxc2 {[%emt 0:00:04]} Nc6 {[%emt 0:00:05]} 13. a3 {[%emt 0:02:45] Prevents Nb4.} Bxc5 {[%emt 0:03:25]} 14. Nc3 {[%emt 0:15:11]} h6 {[%emt 0:07:22]} 15. Ba4 {[%emt 0:10:07]} Bd7 {[%emt 0:11:45]} 16. b4 {[%emt 0:06:34]} Bd4 {[%emt 0:08:38]} 17. Bb2 {[%emt 0:03:00]} Bxc3 {[%emt 0:03:37]} 18. Bxc3 {[%emt 0:00:04]} Ne4 {[%emt 0:00:07] The position is equal.} 19. Bb2 {[%emt 0:05:46]} Ne5 {[%emt 0:07:22][%cal Bc6e5,Be5c4,Bc4b2][%mdl 32]} 20. Bxd7 {[%emt 0:02:20] A strong pair of Bishops.} Nxc4 {[%emt 0:04:32]} 21. Bxe6 {[%emt 0:03:18]} Nxb2 {[%emt 0:03:25]} 22. Bh3 {[%emt 0:16:34]} Nd2 {[%emt 0:02:46]} 23. Nxd2 {[%emt 0:00:15]} Rxd2 {[%emt 0:00:05]} 24. Rac1 {[%emt 0:02:00]} b5 {[%emt 0:10:15]} 25. g3 {[%emt 0:03:53]} Rd3 {[%emt 0:05:25]} 26. Rc2 {[%emt 0:00:23]} Nc4 {[%emt 0:01:09]} 27. a4 {[%emt 0:00:22]} a6 {[%emt 0:00:51]} 28. Ra1 {[%emt 0:01:58]} Rb8 {[%emt 0:03:05]} 29. axb5 {[%emt 0:02:34]} axb5 {[%emt 0:00:10]} 30. Bf1 {[%emt 0:00:26]} Rb3 {[%emt 0:01:00]} 31. Bxc4 {[%emt 0:00:12]} bxc4 {[%emt 0:00:03]} 32. Rxc4 {[%emt 0:00:03]} R3xb4 {[%emt 0:00:05]} 33. Rxb4 {[%emt 0:00:14]} Rxb4 $11 {[%emt 0:00:04][%mdl 4096] Endgame KR-KR} 34. h4 {[%emt 0:00:03]} h5 {[%emt 0:00:12]} 35. Kg2 {[%emt 0:00:07]} g6 {[%emt 0:00:05]} 36. Kf3 {[%emt 0:00:04]} Kg7 {[%emt 0:00:05]} 37. Ra6 {[%emt 0:00:09]} Rc4 {[%emt 0:00:06]} 38. Rb6 {[%emt 0:00:05]} Ra4 {[%emt 0:00:05]} 39. Rc6 {[%emt 0:00:07]} Rb4 {[%emt 0:00:04]} 40. Ra6 {[%emt 0:00:00]} Rc4 {[%emt 0:00:00] An interesting draw.  Weighted Error Value: White=0.02 (flawless) /Black=0.02 (flawless)} 1/2-1/2

[Event "Azerbaijan Women Championship 2022"]
[Site "Baku"]
[Date "2022.05.19"]
[Round "3.3"]
[White "Beydullayeva, Govhar"]
[Black "Mamedjarova, Turkan"]
[Result "1-0"]
[ECO "A06"]
[WhiteElo "2384"]
[BlackElo "2264"]
[Annotator "TA"]
[PlyCount "103"]
[EventDate "2022.05.17"]
[EventType "tourn"]
[EventCountry "AZE"]
[SourceTitle "playchess.com"]
[Source "ChessBase"]
[SourceQuality "1"]
[TimeControl "40/5400+30:1800+30"]

{[%evp 17,103,10,17,10,60,20,20,-13,16,23,55,50,80,43,50,15,18,-47,-43,-45,-51,-62,0,0,0,-49,-53,-60,-60,-50,-37,-30,0,0,0,0,10,-47,-54,-62,-65,-74,0,-41,-30,-45,-31,-39,0,-38,-24,-180,-21,-39,-39,-27,-14,-18,24,29,58,67,56,50,42,2,240,254,493,495,1156,1059,29986,585,710,701,756,737,782,779,1266,1152,1454,1397,1260,1144,29990,29991]} 1. Nf3 {[%emt 0:00:19]} d5 {[%emt 0:00:34]} 2. d4 {[%emt 0:00:04]} e6 {[%emt 0:00:16]} 3. c4 {[%emt 0:00:10]} c6 {[%emt 0:00:16]} 4. Nbd2 {[%emt 0:01:36]} f5 {[%emt 0:00:36]} 5. g3 {[%emt 0:01:27]} Nf6 {[%emt 0:00:44]} 6. Bg2 {[%emt 0:00:10]} Bd6 {[%emt 0:00:38]} 7. b3 {[%emt 0:08:45]} O-O {[%emt 0:07:33]} 8. O-O {[%emt 0:05:38]} Nbd7 {[%emt 0:08:28]} 9. Bb2 {[%emt 0:01:09]} Ne4 {[%emt 0:06:20]} 10. Ne1 {[%emt 0:13:47] E01: Catalan: Early deviations.} Ndf6 {[%emt 0:03:54] [#]} (10... Qe7 $11) 11. c5 $146 {[%emt 0:13:31]} (11. Nd3 {seems wilder.} b6 12. Nf3 Ng4 13. Nfe5) ({Predecessor:} 11. Nxe4 Nxe4 12. f3 Nf6 13. Nd3 Bd7 14. Ne5 Be8 15. Qd2 dxc4 16. Nxc4 Bc7 17. Rfd1 Kh8 {1-0 (51) Martinez,M (1749)-Vieira,A (1831) Sao Paulo 2016}) 11... Bc7 {[%emt 0:02:58]} 12. f3 {[%emt 0:00:10] The position is equal.} Ng5 {[%emt 0:08:59]} (12... Nxg3 $5 13. hxg3 Bxg3 $16) 13. Nd3 {[%emt 0:00:23] Against f4} h5 {[%emt 0:05:32]} 14. Qe1 {[%emt 0:06:17]} Qe8 {[%emt 0:09:52]} 15. Ne5 {[%emt 0:08:33]} Nd7 {[%emt 0:05:35]} 16. Nxd7 {[%emt 0:05:30]} Bxd7 {[%emt 0:00:37]} 17. e4 {[%emt 0:02:10]} ({Better is} 17. f4 $11 Ne4 18. Nf3) 17... f4 {[%emt 0:04:25]} 18. e5 {[%emt 0:02:25]} Qg6 {[%emt 0:05:28]} 19. b4 {[%emt 0:15:34]} Nf7 {[%emt 0:06:03]} ({Black should try} 19... a5 $15) 20. Nb3 $11 {[%emt 0:02:57]} fxg3 {[%emt 0:11:41]} 21. hxg3 {[%emt 0:02:03]} (21. Qxg3 $11 Qxg3 22. hxg3) 21... Nh6 $15 {[%emt 0:00:33]} 22. Bc1 {[%emt 0:01:27]} Nf5 {[%emt 0:00:22]} 23. Kh2 {[%emt 0:00:22]} Bd8 {[%emt 0:02:06]} 24. Bh3 {[%emt 0:02:17]} Bg5 {[%emt 0:01:52]} 25. Bxg5 {[%emt 0:01:17]} Qxg5 {[%emt 0:00:03]} 26. Bxf5 {[%emt 0:00:08]} Rxf5 {[%emt 0:00:34][%cal Bf8f5,Bf5h5,Bh5h6][%mdl 32]} 27. f4 {[%emt 0:02:09]} (27. Qd2 $11) 27... Qh6 $1 {[%emt 0:01:07][%cal Oh5h4]} 28. Qe3 {[%emt 0:02:51]} Raf8 $1 {[%emt 0:00:29]} 29. Kg2 {[%emt 0:00:25]} Qg6 {[%emt 0:03:03]} (29... h4 $17) 30. Rf3 {[%emt 0:01:06]} h4 {[%emt 0:00:46]} 31. Rh1 {[%emt 0:00:03]} Rh5 {[%emt 0:00:51]} 32. Nc1 {[%emt 0:00:41]} Rh6 {[%emt 0:02:18]} (32... Be8 $5 {[%cal Rh4g3]}) 33. Ne2 {[%emt 0:00:25]} Be8 {[%emt 0:00:54]} 34. Kf2 $2 {[%emt 0:01:05]} (34. Rff1 $11 {and White stays safe.}) 34... h3 $2 {[%emt 0:00:05]} ({Black should play} 34... hxg3+ $19 35. Nxg3 Rxh1 36. Nxh1 Qc2+ 37. Kg1 Qxa2) 35. Kg1 {[%emt 0:00:11]} h2+ $1 {[%emt 0:00:51]} 36. Rxh2 {[%emt 0:00:13]} Rxh2 {[%emt 0:00:28]} 37. Kxh2 {[%emt 0:00:01]} Qg4 {[%emt 0:00:11]} 38. Rf2 {[%emt 0:00:38]} Bg6 {[%emt 0:01:36]} 39. Qf3 $36 {[%emt 0:00:27][%mdl 2048] White is more active.} Qf5 {[%emt 0:00:01]} 40. g4 {[%emt 0:00:00] Inhibits Bh5.} Qb1 {[%emt 0:00:00][%csl LRa2,LRb4]} 41. Ng3 {[%emt 0:01:18] [#] Threatens to win with f5.} (41. f5 $5) 41... Qxb4 $2 {[%emt 0:05:04]} (41... Be4 $11 {and Black has nothing to worry.} 42. Nxe4 dxe4) 42. Qe3 $18 {[%emt 0:03:06]} Qb1 {[%emt 0:00:52]} (42... b6 {keeps fighting.} 43. f5 Be8) 43. f5 $1 {[%emt 0:03:54] Black must now prevent Qg5.} Bf7 {[%emt 0:07:10]} (43... exf5 $2 44. gxf5 (44. Qf4 Qd1 $18) 44... Be8 45. Qg5 (45. e6 b6 $16)) (43... Be8 $142 44. Qg5 (44. fxe6 Rxf2+ 45. Qxf2 Qg6 $16) 44... Qd3) 44. Qg5 {[%emt 0:04:56]} Re8 {[%emt 0:05:42]} 45. fxe6 {[%emt 0:04:33]} (45. Nh5 $142 Bxh5 46. gxh5 (46. Qxh5 Rf8 $11) 46... Qxf5 47. Rxf5 exf5 48. h6 Kf7 49. Qxg7+ Ke6 50. h7) 45... Qh7+ {[%emt 0:03:12]} 46. Kg1 {[%emt 0:03:36]} Rxe6 {[%emt 0:03:25]} 47. Nf5 {[%emt 0:00:40] [#] Strongly threatening Qd8+.} Qg6 {[%emt 0:01:04]} 48. Qh4 {[%emt 0:02:07]} ({And not} 48. Ne7+ Rxe7 49. Qxe7 Qxg4+ 50. Kh1 Qd1+ 51. Kg2 Qg4+ 52. Kh1 Qd1+ 53. Kh2 Qh5+ 54. Kg2 Qg4+ 55. Kf1 Qd1+ 56. Kg2 Qg4+ $11) 48... Re8 {[%emt 0:02:43]} 49. Nd6 {[%emt 0:02:21]} Qb1+ {[%emt 0:01:35]} 50. Rf1 {[%emt 0:00:44]} Qd3 {[%emt 0:00:04]} 51. Nxf7 {[%emt 0:00:15][%csl Gf7][%cal Rh4h8]} Qxd4+ {[%emt 0:00:12]} 52. Kh2 {[%emt 0:00:29] Weighted Error Value: White=0.39/Black=0.66} 1-0

[Event "Azerbaijan Women Championship 2022"]
[Site "Baku"]
[Date "2022.05.19"]
[Round "3.4"]
[White "Fataliyeva, Ulviyya"]
[Black "Mammadova, Gulnar"]
[Result "1-0"]
[ECO "A50"]
[WhiteElo "2348"]
[BlackElo "2387"]
[Annotator "TA"]
[PlyCount "79"]
[EventDate "2022.05.17"]
[EventType "tourn"]
[EventCountry "AZE"]
[SourceTitle "playchess.com"]
[Source "ChessBase"]
[SourceQuality "1"]
[TimeControl "40/5400+30:1800+30"]

{[%evp 9,79,21,59,36,32,35,79,76,85,69,152,139,147,147,168,151,147,139,186,164,147,162,186,184,187,175,182,168,173,172,179,179,173,177,170,165,210,152,136,147,642,598,811,545,611,604,627,606,627,602,563,588,617,584,659,661,637,633,725,727,720,721,717,697,710,695,750,744,1895,1850,1905,1801]} 1. d4 {[%emt 0:03:37]} Nf6 {[%emt 0:00:11]} 2. c4 {[%emt 0:00:11]} g6 {[%emt 0:00:06]} 3. h4 {[%emt 0:00:04]} Bg7 {[%emt 0:01:01]} 4. Nc3 {[%emt 0:01:17]} d6 {[%emt 0:07:55]} 5. e4 {[%emt 0:00:22]} h6 {[%emt 0:12:25] [#]} 6. Nge2 $146 {[%emt 0:05:10][%cal Bg1e2,Be2g3,Bg3f5][%mdl 32] E60: King's Indian: Unusual lines and Fianchetto Variation without Nc3.} ({Predecessor:} 6. f3 a6 7. Be3 c6 8. Qd2 b5 9. O-O-O Nbd7 10. g4 Qa5 11. a3 Rb8 12. cxb5 axb5 {1-0 (56) Trent,L (2399)-Komiagina,M (2241) Chess.com INT 2021}) 6... c5 {[%emt 0:02:48]} 7. d5 {[%emt 0:01:59]} b5 {[%emt 0:04:01]} 8. cxb5 {[%emt 0:00:38] White is better.} a6 {[%emt 0:00:11]} 9. Ng3 {[%emt 0:00:48]} O-O {[%emt 0:03:06]} ({Black should try} 9... h5 $14) 10. h5 $1 $16 {[%emt 0:09:40]} g5 {[%emt 0:00:10] [#]} 11. Bxg5 $1 {[%emt 0:01:00][%mdl 512]} axb5 {[%emt 0:08:40]} 12. Bxf6 {[%emt 0:03:58]} Bxf6 {[%emt 0:00:22]} 13. Bxb5 {[%emt 0:00:56]} Bg7 {[%emt 0:06:20]} (13... Qa5 $16) 14. Nf5 {[%emt 0:04:26]} Bxf5 {[%emt 0:02:19]} 15. exf5 {[%emt 0:00:05]} Qa5 {[%emt 0:03:22] [#]} 16. Rh3 {[%emt 0:04:15][%cal Bh1h3,Bh3f3,Bf3g3,Bg3g4][%mdl 32] Rg3 is the strong threat.} Qb4 {[%emt 0:08:13]} (16... Bxc3+ $2 17. bxc3 Kh7 18. Qd3 $18) 17. Qe2 {[%emt 0:06:27] And now a3 would win.} Ra7 {[%emt 0:05:13]} 18. a3 {[%emt 0:06:07]} Qf4 {[%emt 0:02:40]} 19. Rf3 {[%emt 0:04:24]} Qh4 {[%emt 0:04:07]} 20. O-O-O {[%emt 0:03:11]} Nd7 {[%emt 0:02:20]} 21. Bxd7 {[%emt 0:11:47]} Rxd7 {[%emt 0:00:02]} 22. Rg3 {[%emt 0:02:08] aiming for Qf3.} Rb8 {[%emt 0:02:30]} 23. Qg4 {[%emt 0:06:07]} Qxg4 {[%emt 0:03:06]} 24. Rxg4 {[%emt 0:00:09]} Kf8 $2 {[%emt 0:00:05][%mdl 8192] This costs Black the game.} (24... Rdb7 $16) 25. Rd3 $18 {[%emt 0:01:32] Strongly threatening Rdg3. White is clearly winning.} Bxc3 {[%emt 0:03:17]} 26. Rxc3 {[%emt 0:05:21][%mdl 4096] Endgame Intending Rcg3 and mate. KRR-KRR} ({Not} 26. bxc3 Rdb7 $18) 26... Rdb7 {[%emt 0:01:52]} 27. Rcg3 {[%emt 0:00:07][%csl Gg3][%cal Rg4g8]} Ke8 {[%emt 0:00:03]} 28. Rg8+ {[%emt 0:00:05]} Kd7 {[%emt 0:00:03]} 29. Rxb8 {[%emt 0:00:06]} Rxb8 {[%emt 0:00:05] KR-KR} 30. Rg7 {[%emt 0:00:07]} f6 {[%emt 0:00:16]} 31. Kc2 {[%emt 0:01:11]} c4 {[%emt 0:02:26]} 32. Rg4 {[%emt 0:01:39]} Rb5 {[%emt 0:00:22]} 33. Rd4 {[%emt 0:00:08]} Ra5 {[%emt 0:00:29]} 34. Kc3 {[%emt 0:00:38]} Rb5 {[%emt 0:00:11]} 35. Rd2 {[%emt 0:00:18]} Rc5 {[%emt 0:00:25]} 36. a4 {[%emt 0:01:38]} Kc7 {[%emt 0:00:48]} 37. Kd4 {[%emt 0:00:19]} Ra5 {[%emt 0:00:26]} 38. Rc2 {[%emt 0:00:16]} Ra8 {[%emt 0:00:38]} 39. Kxc4 {[%emt 0:00:30]} Kd7 {[%emt 0:00:12]} 40. Kb4 {[%emt 0:00:00] Weighted Error Value: White=0.16 (very precise) /Black=0.50} 1-0

[Event "Azerbaijan Women Championship 2022"]
[Site "Baku"]
[Date "2022.05.20"]
[Round "4.1"]
[White "Mammadova, Gulnar"]
[Black "Hajiyeva, Laman"]
[Result "1/2-1/2"]
[ECO "C11"]
[WhiteElo "2387"]
[BlackElo "1971"]
[Annotator "TA"]
[PlyCount "51"]
[EventDate "2022.05.17"]
[EventType "tourn"]
[EventCountry "AZE"]
[SourceTitle "playchess.com"]
[Source "ChessBase"]
[SourceQuality "1"]
[TimeControl "40/5400+30:1800+30"]

{[%evp 20,51,50,50,54,41,54,21,18,17,14,22,25,-20,-39,-49,-62,-41,-18,-19,0,-18,0,-14,0,-22,0,-13,0,-36,0,-28,0,-25]} 1. e4 {[%emt 0:01:20]} e6 {[%emt 0:00:11]} 2. d4 {[%emt 0:00:09]} d5 {[%emt 0:00:19]} 3. Nc3 {[%emt 0:00:26]} Nf6 {[%emt 0:00:17]} 4. e5 {[%emt 0:00:35]} Nfd7 {[%emt 0:00:25]} 5. f4 {[%emt 0:00:21]} c5 {[%emt 0:01:00]} 6. Nf3 {[%emt 0:00:39]} Nc6 {[%emt 0:01:32]} 7. Be3 {[%emt 0:01:01]} Qb6 {[%emt 0:03:59]} 8. Na4 {[%emt 0:01:27]} Qa5+ {[%emt 0:01:15]} 9. c3 {[%emt 0:01:01]} b6 {[%emt 0:02:11][%cal Bb7b6,Bb6b5,Bb5b4][%mdl 32]} 10. Bd2 {[%emt 0:11:19]} c4 {[%emt 0:07:12]} 11. b4 $1 {[%emt 0:03:23]} Nxb4 {[%emt 0:13:32] C11: French: Classical System: 4 e5 and 4 Bg5 dxe4.} 12. cxb4 {[%emt 0:01:47]} Bxb4 {[%emt 0:00:09]} 13. Rc1 {[%emt 0:06:02] Nc3 is the strong threat.} Bxd2+ {[%emt 0:04:57]} 14. Nxd2 {[%emt 0:00:58]} b5 {[%emt 0:02:33]} 15. Nc3 {[%emt 0:05:15]} O-O {[%emt 0:03:40]} 16. Be2 {[%emt 0:02:25]} b4 {[%emt 0:05:27] [#]} 17. Nce4 $146 {[%emt 0:14:53]} ({Predecessor:} 17. Qa4 Qb6 18. Nd1 Nb8 19. Nf3 Nc6 20. Nf2 a5 21. Qd1 a4 22. O-O a3 23. Qd2 {0-1 (44) Abasov,N (2516)-Mammadov,Z (2453) Baku 2014}) 17... dxe4 {[%emt 0:05:40]} 18. Nxc4 {[%emt 0:01:07]} Qd5 {[%emt 0:05:34] White must now prevent ...Ba6.} (18... Qxa2 $2 19. Ra1 Qxa1 20. Qxa1 $18) 19. Ne3 {[%emt 0:01:34]} Qa5 {[%emt 0:02:19]} 20. Nc4 $1 {[%emt 0:07:59]} Qd5 {[%emt 0:02:27] And now ...Ba6 would win.} (20... Qxa2 $2 21. Ra1 Qxa1 22. Qxa1 $18) 21. Ne3 {[%emt 0:00:11]} Qa5 {[%emt 0:00:57]} 22. Nc4 {[%emt 0:00:44]} Qd5 {[%emt 0:00:23] Hoping for ...Ba6.} (22... Qxa2 $2 23. Ra1 Qxa1 24. Qxa1 $18) 23. Ne3 {[%emt 0:00:04]} Qa5 {[%emt 0:00:05]} 24. Nc4 $1 {[%emt 0:00:08]} Qd5 {[%emt 0:00:09] Strongly threatening ...Ba6.} (24... Qxa2 $2 25. Ra1 Qxa1 26. Qxa1 $18) 25. Ne3 {[%emt 0:00:26]} Qa5 {[%emt 0:00:24]} 26. Nc4 $1 {[%emt 0:00:27] Weighted Error Value: White=0.04 (flawless) /Black=0.14 (very precise)} 1/2-1/2

[Event "Azerbaijan Women Championship 2022"]
[Site "Baku"]
[Date "2022.05.20"]
[Round "4.2"]
[White "Mamedjarova, Turkan"]
[Black "Abdulla, Khayala"]
[Result "0-1"]
[ECO "A02"]
[WhiteElo "2264"]
[BlackElo "2219"]
[Annotator "TA"]
[PlyCount "52"]
[EventDate "2022.05.17"]
[EventType "tourn"]
[EventCountry "AZE"]
[SourceTitle "playchess.com"]
[Source "ChessBase"]
[SourceQuality "1"]
[TimeControl "40/5400+30:1800+30"]

{[%evp 13,52,-16,-10,-7,9,0,4,-18,-14,-11,-22,-18,-16,-25,-14,-37,-39,-118,-109,-112,-101,-198,-201,-209,-209,-251,-280,-365,-353,-587,-590,-686,-637,-626,-595,-642,-665,-765,-758,-669,-615]} 1. f4 {[%emt 0:00:16]} Nf6 {[%emt 0:01:54]} 2. Nf3 {[%emt 0:02:19]} e6 {[%emt 0:02:08]} 3. e3 {[%emt 0:00:28]} d5 {[%emt 0:00:31]} 4. d4 {[%emt 0:00:10]} c5 {[%emt 0:01:49]} 5. c3 {[%emt 0:00:10]} Nc6 {[%emt 0:00:04]} 6. Bd3 {[%emt 0:00:29]} Bd6 {[%emt 0:03:45]} 7. O-O {[%emt 0:01:00]} O-O {[%emt 0:00:26]} 8. Ne5 {[%emt 0:03:33] D00: 1 d4 d5: Unusual lines.} Qc7 {[%emt 0:04:28]} 9. Nd2 {[%emt 0:10:14]} b6 {[%emt 0:01:24]} 10. Qf3 {[%emt 0:07:37] The position is equal.} Bb7 {[%emt 0:12:39]} 11. Qh3 {[%emt 0:16:38]} Ne7 {[%emt 0:03:19]} 12. Ndf3 {[%emt 0:05:11] [#] Black must now prevent Ng4.} Ne4 {[%emt 0:16:09] [#]} 13. Ng5 $146 {[%emt 0:13:50][%csl Gg5][%cal Rh3h7]} (13. Bxe4 dxe4 14. dxc5 (14. Ng5 $2 h6 $19) 14... Bxc5 $15) ({Predecessor:} 13. Bd2 Nf5 14. Rad1 Be7 15. Bc1 f6 16. Ng4 Nfd6 17. Nf2 Bc8 18. g4 a5 19. Qg2 {½-½ (59) Kagramanianz,V (2292)-Bilych,O (1967) Lvov 2017}) 13... h6 {[%emt 0:04:10]} 14. Ngf3 {[%emt 0:04:10]} (14. Ngxf7 Rxf7 15. Nxf7 (15. Qxe6 $2 Bxe5 16. fxe5 Raf8 $19) 15... Kxf7 $17) 14... Qc8 {[%emt 0:08:37]} 15. Nh4 {[%emt 0:11:29]} ({Better is} 15. Nd2 $15) 15... Bxe5 $17 {[%emt 0:06:03]} 16. fxe5 {[%emt 0:01:35]} Ba6 {[%emt 0:00:57]} 17. Bxe4 {[%emt 0:03:15]} (17. Bxa6 $17 Qxa6 18. g3) 17... Bxf1 $19 {[%emt 0:09:06]} ({Weaker is} 17... dxe4 18. Rf2 $17) 18. Bc2 {[%emt 0:00:43]} Qa6 {[%emt 0:02:05]} 19. e4 {[%emt 0:07:46]} Qe2 {[%emt 0:00:36][%csl LRc2,LRe4]} 20. Bxh6 {[%emt 0:00:20]} gxh6 {[%emt 0:02:12] Dancing on a razor blade.} ({Stronger than} 20... Qxc2 21. Qg4 Ng6 22. Rxf1 $17 (22. Nxg6 $2 fxg6 23. Rxf1 Rxf1+ 24. Kxf1 Rf8+ 25. Bf4 Qb1+ 26. Kf2 Qxb2+ 27. Kf1 Qxc3 $19)) 21. Rxf1 $2 {[%emt 0:02:07] [#]} (21. Qg3+ Kh7 22. Qf2 Qxf2+ 23. Kxf2) 21... Qxc2 {[%emt 0:00:40] Black is clearly winning.} 22. Qg4+ {[%emt 0:03:27]} Kh8 {[%emt 0:07:59]} 23. Qh5 {[%emt 0:03:46]} Qd2 {[%emt 0:00:34]} 24. Qf3 {[%emt 0:00:59]} Qg5 {[%emt 0:00:28]} 25. g3 {[%emt 0:00:05]} cxd4 {[%emt 0:01:34]} 26. cxd4 {[%emt 0:00:07]} Rad8 {[%emt 0:00:42] Weighted Error Value: White=0.46/Black=0.07 (flawless)} 0-1